fUST/lending_fUST_20250530
["ID","MTS","AMOUNT","RATE_DAILY","PERIOD"]
[363007458,1748548241657,-470.0,0.00019452,2]
[363007459,1748548241667,-400.0,0.00019452,2]
[363007460,1748548241676,-470.0,0.00019452,2]
[363007461,1748548241686,-430.0,0.00019452,2]
[363007462,1748548241695,-693.08,0.00019452,2]
[363007463,1748548241704,-10246.64,0.00019452,2]
[363007464,1748548241714,-430.0,0.00019452,2]
[363007465,1748548241723,-2484.53,0.00019452,2]
[363007466,1748548241733,-440.0,0.00019452,2]
[363007467,1748548241742,-1397.03,0.00019452,2]
[363007468,1748548241751,-430.0,0.00019452,2]
[363007469,1748548241761,-470.0,0.00019452,2]
[363007470,1748548241770,-5340.17,0.00019452,2]
[363007471,1748548241780,-430.0,0.00019452,2]
[363007472,1748548241791,-430.0,0.00019452,2]
[363007473,1748548241801,-615.66,0.00019452,2]
[363007474,1748548241810,-470.72590005,0.00019452,2]
[363007475,1748548241820,-470.0,0.00019452,2]
[363007476,1748548241829,-470.0,0.00019452,2]
[363007477,1748548241838,-430.0,0.00019452,2]
[363007478,1748548241847,-470.0,0.00019452,2]
[363007479,1748548241856,-430.0,0.00019452,2]
[363007480,1748548241866,-430.0,0.00019452,2]
[363007481,1748548241875,-430.0,0.00019452,2]
[363007482,1748548241884,-430.0,0.00019452,2]
[363007483,1748548241894,-500.53,0.00019452,2]
[363007484,1748548241903,-430.0,0.00019452,2]
[363007485,1748548241913,-353.82857628,0.00019452,2]
[363007486,1748548241923,-480.08978909,0.00019452,2]
[363007487,1748548241932,-430.0,0.00019452,2]
[363007488,1748548241942,-430.0,0.00019452,2]
[363007489,1748548241951,-430.0,0.00019452,2]
[363007490,1748548241960,-470.0,0.00019452,2]
[363007491,1748548241970,-430.0,0.00019452,2]
[363007492,1748548241979,-490.0,0.00019452,2]
[363007493,1748548241988,-430.0,0.00019452,2]
[363007494,1748548241998,-430.0,0.00019452,2]
[363007495,1748548242007,-1610.98,0.00019452,2]
[363007496,1748548242017,-3879.95,0.00019452,2]
[363007497,1748548242027,-430.0,0.00019452,2]
[363007498,1748548242037,-1953.25,0.00019452,2]
[363007499,1748548242046,-472.27976292,0.00019452,2]
[363007500,1748548242056,-621.94,0.00019452,2]
[363007501,1748548242066,-430.0,0.00019452,2]
[363007502,1748548242087,-375.70175879,0.00019452,2]
[363007503,1748548242097,-430.0,0.00019452,2]
[363007504,1748548242106,-5619.57,0.00019452,2]
[363007505,1748548242116,-430.0,0.00019452,2]
[363007506,1748548242126,-334.01,0.00019452,2]
[363007507,1748548242135,-4363.23,0.00019452,2]
[363007508,1748548242144,-430.0,0.00019452,2]
[363007509,1748548242154,-430.0,0.00019452,2]
[363007510,1748548242164,-430.0,0.00019452,2]
[363007511,1748548242173,-430.0,0.00019452,2]
[363007512,1748548242186,-2865.39,0.00019452,2]
[363007513,1748548242196,-470.0,0.00019452,2]
[363007514,1748548242205,-179.44015182,0.00019452,2]
[363007515,1748548242215,-430.0,0.00019452,2]
[363007516,1748548242225,-430.0,0.00019452,2]
[363007517,1748548242235,-476.74968782,0.00019452,2]
[363007518,1748548242244,-430.0,0.00019452,2]
[363007519,1748548242254,-4959.27,0.00019452,2]
[363007520,1748548242265,-430.0,0.00019452,2]
[363007521,1748548242275,-470.0,0.00019452,2]
[363007522,1748548242285,-9356.79,0.00019452,2]
[363007523,1748548242295,-450.0,0.00019452,2]
[363007524,1748548242304,-470.0,0.00019452,2]
[363007525,1748548242314,-471.24675956,0.00019452,2]
[363007526,1748548242323,-430.0,0.00019452,2]
[363007527,1748548242334,-3309.55,0.00019452,2]
[363007528,1748548242343,-471.06159895,0.00019452,2]
[363007529,1748548242353,-430.0,0.00019452,2]
[363007530,1748548242364,-430.0,0.00019452,2]
[363007531,1748548242373,-794.29,0.00019452,2]
[363007532,1748548242383,-430.0,0.00019452,2]
[363007533,1748548242393,-470.0,0.00019452,2]
[363007534,1748548242403,-237.79115115,0.00019452,2]
[363007535,1748548242412,-3119.99,0.00019452,2]
[363007536,1748548242422,-458.27813346,0.00019452,2]
[363007537,1748548242432,-430.0,0.00019452,2]
[363007538,1748548242442,-470.0,0.00019452,2]
[363007539,1748548242453,-430.0,0.00019452,2]
[363007540,1748548242464,-430.0,0.00019452,2]
[363007541,1748548242474,-430.0,0.00019452,2]
[363007542,1748548242483,-430.0,0.00019452,2]
[363007543,1748548242493,-430.0,0.00019452,2]
[363007544,1748548242502,-430.0,0.00019452,2]
[363007545,1748548242512,-401.58972257,0.00019452,2]
[363007546,1748548242521,-919.62,0.00019452,2]
[363007547,1748548242531,-812.04,0.00019452,2]
[363007548,1748548242542,-470.0,0.00019452,2]
[363007549,1748548242552,-3128.26,0.00019452,2]
[363007550,1748548242562,-430.0,0.00019452,2]
[363007551,1748548242572,-470.0,0.00019452,2]
[363007552,1748548242581,-320.98718604,0.00019452,2]
[363007553,1748548242591,-430.0,0.00019452,2]
[363007554,1748548242601,-470.0,0.00019452,2]
[363007555,1748548242611,-470.0,0.00019452,2]
[363007556,1748548242621,-430.0,0.00019452,2]
[363007557,1748548242751,-430.0,0.00019452,2]
[363007558,1748548242761,-5640.66,0.00019452,2]
[363007559,1748548242770,-430.0,0.00019452,2]
[363007560,1748548242780,-546.5364559,0.00019452,2]
[363007561,1748548242789,-430.0,0.00019452,2]
[363007562,1748548242798,-231.87805171,0.00019452,2]
[363007563,1748548242808,-521.44848117,0.00019452,2]
[363007564,1748548242817,-430.0,0.00019452,2]
[363007565,1748548242827,-430.0,0.00019452,2]
[363007566,1748548242836,-470.0,0.00019452,2]
[363007567,1748548242845,-430.0,0.00019452,2]
[363007568,1748548242855,-320.61703024,0.00019452,2]
[363007569,1748548242864,-430.0,0.00019452,2]
[363007570,1748548242873,-7027.58,0.00019452,2]
[363007571,1748548242883,-430.0,0.00019452,2]
[363007572,1748548242892,-1251.48,0.00019452,2]
[363007573,1748548242902,-430.0,0.00019452,2]
[363007574,1748548242911,-4587.33,0.00019452,2]
[363007575,1748548242920,-5431.33,0.00019452,2]
[363007576,1748548242929,-430.0,0.00019452,2]
[363007578,1748548242938,-1129.44,0.00019452,2]
[363007579,1748548242948,-430.0,0.00019452,2]
[363007580,1748548242957,-1291.18,0.00019452,2]
[363007581,1748548242966,-537.978401,0.00019473,2]
[363007582,1748548242976,-177.77189404,0.00019473,2]
[363007583,1748548242985,-500.0,0.00019473,2]
[363007585,1748548242994,-500.0,0.00019473,2]
[363007586,1748548243003,-500.0,0.00019473,2]
[363007587,1748548243012,-405.16507239,0.00019473,2]
[363007588,1748548243021,-500.0,0.00019473,2]
[363007589,1748548243030,-503.57840558,0.00019473,2]
[363007590,1748548243040,-500.0,0.00019473,2]
[363007592,1748548243050,-179.19610357,0.00019489,2]
[363007594,1748548243059,-500.0,0.00019721,2]
[363007596,1748548243068,-220.99538037,0.00019726,2]
[363007597,1748548243077,-490.0,0.00019726,2]
[363007598,1748548243087,-312.29704008,0.00019726,2]
[363007599,1748548243095,-430.0,0.00019726,2]
[363007600,1748548243108,-297.55222512,0.00019726,2]
[363007601,1748548243117,-430.0,0.00019726,2]
[363007602,1748548243127,-430.0,0.00019726,2]
[363007604,1748548243136,-430.0,0.00019726,2]
[363007606,1748548243145,-430.0,0.00019726,2]
[363007609,1748548243155,-268.05998819,0.00019726,2]
[363007611,1748548243164,-345.75777632,0.00019726,2]
[363007613,1748548243173,-490.0,0.00019726,2]
[363007615,1748548243183,-430.0,0.00019726,2]
[363007616,1748548243195,-430.0,0.00019726,2]
[363007617,1748548243205,-531.08677894,0.00019726,2]
[363007618,1748548243214,-430.0,0.00019726,2]
[363007619,1748548243223,-430.0,0.00019726,2]
[363007621,1748548243234,-430.0,0.00019726,2]
[363007622,1748548243244,-430.0,0.00019726,2]
[363007623,1748548243253,-440.0,0.00019726,2]
[363007624,1748548243263,-358.53186603,0.00019726,2]
[363007625,1748548243274,-470.0,0.00019726,2]
[363007626,1748548243284,-430.0,0.00019726,2]
[363007627,1748548243294,-470.0,0.00019726,2]
[363007628,1748548243303,-430.0,0.00019726,2]
[363007629,1748548243313,-430.0,0.00019726,2]
[363007630,1748548243322,-430.0,0.00019726,2]
[363007631,1748548243331,-430.0,0.00019726,2]
[363007632,1748548243341,-430.0,0.00019726,2]
[363007633,1748548243350,-430.0,0.00019726,2]
[363007634,1748548243360,-470.0,0.00019726,2]
[363007635,1748548243369,-430.0,0.00019726,2]
[363007636,1748548243379,-430.0,0.00019726,2]
[363007637,1748548243388,-430.0,0.00019726,2]
[363007638,1748548243398,-430.0,0.00019726,2]
[363007639,1748548243407,-430.0,0.00019726,2]
[363007640,1748548243417,-2314.44,0.00019726,2]
[363007641,1748548243427,-594.85,0.00019726,2]
[363007642,1748548243436,-430.0,0.00019726,2]
[363007643,1748548243446,-603.76,0.00019726,2]
[363007644,1748548243457,-430.0,0.00019726,2]
[363007645,1748548243466,-430.0,0.00019726,2]
[363007646,1748548243477,-430.0,0.00019726,2]
[363007647,1748548243487,-430.0,0.00019726,2]
[363007648,1748548243499,-471.32906541,0.00019726,2]
[363007649,1748548243509,-430.0,0.00019726,2]
[363007650,1748548243520,-430.0,0.00019726,2]
[363007651,1748548243529,-430.0,0.00019726,2]
[363007652,1748548243541,-430.0,0.00019726,2]
[363007653,1748548243552,-771.94,0.00019726,2]
[363007654,1748548243561,-430.0,0.00019726,2]
[363007655,1748548243571,-430.0,0.00019726,2]
[363007656,1748548243580,-430.0,0.00019726,2]
[363007657,1748548243589,-430.0,0.00019726,2]
[363007658,1748548243599,-430.0,0.00019726,2]
[363007659,1748548243609,-430.0,0.00019726,2]
[363007660,1748548243619,-553.98257197,0.00019726,2]
[363007661,1748548243628,-480.83,0.00019726,2]
[363007662,1748548243637,-430.0,0.00019726,2]
[363007663,1748548243647,-430.0,0.00019726,2]
[363007664,1748548243656,-430.0,0.00019726,2]
[363007665,1748548243666,-430.0,0.00019726,2]
[363007666,1748548243675,-430.0,0.00019726,2]
[363007667,1748548243685,-430.0,0.00019726,2]
[363007668,1748548243694,-430.0,0.00019726,2]
[363007669,1748548243703,-430.0,0.00019726,2]
[363007670,1748548243713,-430.0,0.00019726,2]
[363007671,1748548243723,-430.0,0.00019726,2]
[363007672,1748548243732,-430.0,0.00019726,2]
[363007673,1748548243742,-430.0,0.00019726,2]
[363007674,1748548243751,-430.0,0.00019726,2]
[363007675,1748548243760,-430.0,0.00019726,2]
[363007676,1748548243770,-430.0,0.00019726,2]
[363007677,1748548243779,-569.9,0.00019726,2]
[363007678,1748548243790,-603.38,0.00019726,2]
[363007679,1748548243799,-787.4,0.00019726,2]
[363007681,1748548243809,-2970.66,0.00019726,2]
[363007682,1748548243818,-430.0,0.00019726,2]
[363007683,1748548243827,-479.9,0.00019726,2]
[363007684,1748548243837,-430.0,0.00019726,2]
[363007685,1748548243846,-430.0,0.00019726,2]
[363007686,1748548243855,-1043.1,0.00019726,2]
[363007687,1748548243864,-430.0,0.00019726,2]
[363007688,1748548243873,-450.0,0.00019726,2]
[363007689,1748548243883,-445.95,0.00019726,2]
[363007690,1748548243892,-430.0,0.00019726,2]
[363007691,1748548243901,-430.0,0.00019726,2]
[363007692,1748548243910,-430.0,0.00019726,2]
[363007693,1748548243919,-1329.84,0.00019726,2]
[363007694,1748548243929,-311.57254614,0.00019726,2]
[363007695,1748548243939,-470.0,0.00019726,2]
[363007696,1748548243948,-430.0,0.00019726,2]
[363007697,1748548243958,-430.0,0.00019726,2]
[363007698,1748548243967,-430.0,0.00019726,2]
[363007699,1748548243976,-593.23,0.00019726,2]
[363007700,1748548243985,-430.0,0.00019726,2]
[363007701,1748548243996,-430.0,0.00019726,2]
[363007702,1748548244007,-430.0,0.00019726,2]
[363007703,1748548244016,-430.0,0.00019726,2]
[363007704,1748548244025,-430.0,0.00019726,2]
[363007705,1748548244034,-1161.69,0.00019726,2]
[363007706,1748548244043,-430.0,0.00019726,2]
[363007707,1748548244052,-1059.69,0.00019726,2]
[363007708,1748548244062,-1042.56,0.00019726,2]
[363007709,1748548244071,-430.0,0.00019726,2]
[363007710,1748548244080,-8285.73,0.00019726,2]
[363007711,1748548244089,-1393.5,0.00019726,2]
[363007712,1748548244098,-637.88,0.00019726,2]
[363007713,1748548244107,-3981.11,0.00019726,2]
[363007714,1748548244116,-450.0,0.00019726,2]
[363007715,1748548244126,-490.0,0.00019726,2]
[363007716,1748548244135,-430.0,0.00019726,2]
[363007717,1748548244144,-430.0,0.00019726,2]
[363007718,1748548244153,-430.0,0.00019726,2]
[363007719,1748548244162,-500.0,0.00019726,2]
[363007720,1748548244172,-430.0,0.00019726,2]
[363007721,1748548244181,-430.0,0.00019726,2]
[363007722,1748548244193,-2824.87,0.00019726,2]
[363007723,1748548244204,-430.0,0.00019726,2]
[363007724,1748548244213,-8282.88,0.00019726,2]
[363007734,1748548244305,-656.15,0.00019726,2]
[363007736,1748548244315,-430.0,0.00019726,2]
[363007737,1748548244324,-430.0,0.00019726,2]
[363007739,1748548244333,-1203.24,0.00019726,2]
[363007741,1748548244343,-642.27,0.00019726,2]
[363007743,1748548244352,-430.0,0.00019726,2]
[363007744,1748548244362,-430.0,0.00019726,2]
[363007745,1748548244371,-430.0,0.00019726,2]
[363007746,1748548244381,-490.0,0.00019726,2]
[363007747,1748548244390,-693.08,0.00019726,2]
[363007748,1748548244399,-10246.64,0.00019726,2]
[363007749,1748548244409,-430.0,0.00019726,2]
[363007750,1748548244419,-2484.53,0.00019726,2]
[363007751,1748548244428,-1397.03,0.00019726,2]
[363007752,1748548244437,-430.0,0.00019726,2]
[363007753,1748548244447,-5340.17,0.00019726,2]
[363007754,1748548244457,-430.0,0.00019726,2]
[363007755,1748548244466,-430.0,0.00019726,2]
[363007757,1748548244476,-615.66,0.00019726,2]
[363007759,1748548244484,-490.26799731,0.00019726,2]
[363007761,1748548244493,-430.0,0.00019726,2]
[363007763,1748548244502,-430.0,0.00019726,2]
[363007765,1748548244511,-430.0,0.00019726,2]
[363007767,1748548244520,-520.17939413,0.00019726,2]
[363007769,1748548244531,-500.53,0.00019726,2]
[363007771,1748548244541,-430.0,0.00019726,2]
[363007773,1748548244550,-430.0,0.00019726,2]
[363007775,1748548244560,-430.0,0.00019726,2]
[363007777,1748548244569,-507.49,0.00019726,2]
[363007779,1748548244579,-430.0,0.00019726,2]
[363007781,1748548244588,-1610.98,0.00019726,2]
[363007783,1748548244597,-3879.95,0.00019726,2]
[363007785,1748548244607,-430.0,0.00019726,2]
[363007787,1748548244616,-1953.25,0.00019726,2]
[363007789,1748548244625,-621.94,0.00019726,2]
[363007791,1748548244634,-430.0,0.00019726,2]
[363007793,1748548244643,-490.0,0.00019726,2]
[363007795,1748548244652,-5619.57,0.00019726,2]
[363007797,1748548244662,-430.0,0.00019726,2]
[363007798,1748548244673,-4363.23,0.00019726,2]
[363007799,1748548244682,-490.0,0.00019726,2]
[363007800,1748548244692,-430.0,0.00019726,2]
[363007801,1748548244702,-430.0,0.00019726,2]
[363007802,1748548244711,-430.0,0.00019726,2]
[363007803,1748548244721,-2865.39,0.00019726,2]
[363007804,1748548244730,-430.0,0.00019726,2]
[363007805,1748548244740,-430.0,0.00019726,2]
[363007806,1748548244750,-498.81,0.00019726,2]
[363007807,1748548244759,-4959.27,0.00019726,2]
[363007808,1748548244768,-430.0,0.00019726,2]
[363007809,1748548244778,-9356.79,0.00019726,2]
[363007810,1748548244789,-535.98886449,0.00019726,2]
[363007811,1748548244798,-3309.55,0.00019726,2]
[363007812,1748548244807,-325.55,0.00019726,2]
[363007813,1748548244818,-430.0,0.00019726,2]
[363007814,1748548244829,-794.29,0.00019726,2]
[363007815,1748548244839,-394.84275888,0.00019726,2]
[363007816,1748548244849,-3119.99,0.00019726,2]
[363007817,1748548244858,-341.65385455,0.00019726,2]
[363007818,1748548244868,-430.0,0.00019726,2]
[363007819,1748548244877,-430.0,0.00019726,2]
[363007820,1748548244886,-470.0,0.00019726,2]
[363007821,1748548244896,-432.19620842,0.00019726,2]
[363007822,1748548244905,-430.0,0.00019726,2]
[363007823,1748548244915,-430.0,0.00019726,2]
[363007824,1748548244924,-919.62,0.00019726,2]
[363007825,1748548244934,-812.04,0.00019726,2]
[363007826,1748548244945,-3128.26,0.00019726,2]
[363007827,1748548244956,-430.0,0.00019726,2]
[363007828,1748548244967,-470.0,0.00019726,2]
[363007829,1748548244976,-430.0,0.00019726,2]
[363007830,1748548244985,-430.0,0.00019726,2]
[363007831,1748548244995,-5640.66,0.00019726,2]
[363007832,1748548245005,-430.0,0.00019726,2]
[363007833,1748548245014,-316.09857775,0.00019726,2]
[363007834,1748548245023,-470.0,0.00019726,2]
[363007835,1748548245032,-430.0,0.00019726,2]
[363007836,1748548245043,-430.0,0.00019726,2]
[363007837,1748548245052,-430.0,0.00019726,2]
[363007838,1748548245062,-7027.58,0.00019726,2]
[363007839,1748548245071,-470.0,0.00019726,2]
[363007840,1748548245080,-1251.48,0.00019726,2]
[363007841,1748548245090,-470.0,0.00019726,2]
[363007842,1748548245099,-4587.33,0.00019726,2]
[363007843,1748548245107,-5431.33,0.00019726,2]
[363007844,1748548245116,-470.0,0.00019726,2]
[363007845,1748548245126,-1129.44,0.00019726,2]
[363007846,1748548245135,-471.03,0.00019726,2]
[363007847,1748548245144,-1291.18,0.00019726,2]
[363007848,1748548245154,-177.51,0.00019771,2]
[363007849,1748548245163,-179.19610357,0.000199,2]
[363007850,1748548245172,-160.0,0.00019953,2]
[363007851,1748548245183,-160.0,0.00019953,2]
[363007852,1748548245195,-314.78059479,0.00019965,2]
[363007853,1748548245205,-160.0,0.00019965,2]
[363007854,1748548245214,-212.70147903,0.00019965,2]
[363007855,1748548245224,-12660.97845086,0.00019965,2]
[363007856,1748548245234,-229.26895353,0.00019965,2]
[363007857,1748548245244,-842.5625,0.00019965,2]
[363007858,1748548245253,-423.31762986,0.00019965,2]
[363007859,1748548245264,-510.0,0.0002,2]
[363007860,1748548245273,-430.0,0.0002,2]
[363007861,1748548245283,-430.0,0.0002,2]
[363007862,1748548245293,-430.0,0.0002,2]
[363007863,1748548245302,-405.40279732,0.0002,2]
[363007864,1748548245312,-430.0,0.0002,2]
[363007865,1748548245322,-430.0,0.0002,2]
[363007866,1748548245332,-430.0,0.0002,2]
[363007867,1748548245342,-430.0,0.0002,2]
[363007868,1748548245353,-430.0,0.0002,2]
[363007869,1748548245364,-430.0,0.0002,2]
[363007870,1748548245374,-214.75069318,0.0002,2]
[363007871,1748548245383,-430.0,0.0002,2]
[363007872,1748548245392,-239.77257741,0.0002,2]
[363007873,1748548245402,-430.0,0.0002,2]
[363007874,1748548245411,-430.0,0.0002,2]
[363007875,1748548245420,-270.0,0.0002,2]
[363007876,1748548245430,-210.0,0.0002,2]
[363007877,1748548245439,-430.0,0.0002,2]
[363007878,1748548245449,-470.0,0.0002,2]
[363007879,1748548245459,-430.0,0.0002,2]
[363007880,1748548245468,-210.0,0.0002,2]
[363007881,1748548245477,-2314.44,0.0002,2]
[363007882,1748548245487,-594.85,0.0002,2]
[363007883,1748548245496,-430.0,0.0002,2]
[363007884,1748548245505,-603.76,0.0002,2]
[363007885,1748548245514,-430.0,0.0002,2]
[363007886,1748548245523,-430.0,0.0002,2]
[363007887,1748548245533,-430.0,0.0002,2]
[363007888,1748548245543,-430.0,0.0002,2]
[363007889,1748548245552,-430.0,0.0002,2]
[363007890,1748548245561,-430.0,0.0002,2]
[363007891,1748548245571,-771.94,0.0002,2]
[363007892,1748548245580,-430.0,0.0002,2]
[363007893,1748548245589,-430.0,0.0002,2]
[363007894,1748548245599,-430.0,0.0002,2]
[363007895,1748548245608,-430.0,0.0002,2]
[363007896,1748548245618,-430.0,0.0002,2]
[363007897,1748548245628,-550.22,0.0002,2]
[363007898,1748548245637,-480.83,0.0002,2]
[363007899,1748548245647,-430.0,0.0002,2]
[363007900,1748548245656,-430.0,0.0002,2]
[363007901,1748548245743,-154.4213844,0.0002,2]
[363007902,1748548245753,-430.0,0.0002,2]
[363007903,1748548245764,-430.0,0.0002,2]
[363007904,1748548245775,-430.0,0.0002,2]
[363007905,1748548245786,-430.0,0.0002,2]
[363007906,1748548245799,-430.0,0.0002,2]
[363007907,1748548245810,-430.0,0.0002,2]
[363007908,1748548245819,-470.0,0.0002,2]
[363007909,1748548245830,-350.0,0.0002,2]
[363007910,1748548245840,-430.0,0.0002,2]
[363007911,1748548245849,-430.0,0.0002,2]
[363007912,1748548245859,-430.0,0.0002,2]
[363007913,1748548245868,-603.38,0.0002,2]
[363007914,1748548245878,-787.4,0.0002,2]
[363007915,1748548245888,-2970.66,0.0002,2]
[363007916,1748548245897,-430.0,0.0002,2]
[363007917,1748548245906,-479.9,0.0002,2]
[363007918,1748548245916,-430.0,0.0002,2]
[363007919,1748548245926,-1043.1,0.0002,2]
[363007920,1748548245943,-430.0,0.0002,2]
[363007921,1748548245952,-445.95,0.0002,2]
[363007922,1748548245961,-430.0,0.0002,2]
[363007923,1748548245971,-504.87967264,0.0002,2]
[363007924,1748548245981,-430.0,0.0002,2]
[363007925,1748548245990,-1329.84,0.0002,2]
[363007926,1748548246000,-430.0,0.0002,2]
[363007927,1748548246010,-430.0,0.0002,2]
[363007928,1748548246019,-593.23,0.0002,2]
[363007930,1748548246028,-430.0,0.0002,2]
[363007931,1748548246038,-430.0,0.0002,2]
[363007932,1748548246048,-430.0,0.0002,2]
[363007933,1748548246058,-430.0,0.0002,2]
[363007934,1748548246067,-430.0,0.0002,2]
[363007935,1748548246077,-1161.69,0.0002,2]
[363007937,1748548246087,-430.0,0.0002,2]
[363007939,1748548246096,-1059.69,0.0002,2]
[363007940,1748548246107,-1042.56,0.0002,2]
[363007941,1748548246116,-430.0,0.0002,2]
[363007942,1748548246127,-8285.73,0.0002,2]
[363007943,1748548246136,-1393.5,0.0002,2]
[363007944,1748548246145,-637.88,0.0002,2]
[363007945,1748548246155,-3981.11,0.0002,2]
[363007946,1748548246164,-430.0,0.0002,2]
[363007947,1748548246174,-383.1,0.0002,2]
[363007948,1748548246185,-430.0,0.0002,2]
[363007949,1748548246196,-454.12,0.0002,2]
[363007950,1748548246206,-532.71679547,0.0002,2]
[363007951,1748548246215,-430.0,0.0002,2]
[363007952,1748548246225,-2824.87,0.0002,2]
[363007953,1748548246234,-470.0,0.0002,2]
[363007954,1748548246244,-8282.88,0.0002,2]
[363007955,1748548246253,-656.15,0.0002,2]
[363007956,1748548246263,-450.0,0.0002,2]
[363007957,1748548246272,-430.0,0.0002,2]
[363007958,1748548246282,-1203.24,0.0002,2]
[363007959,1748548246292,-642.27,0.0002,2]
[363007960,1748548246302,-459.74347429,0.0002,2]
[363007961,1748548246311,-430.0,0.0002,2]
[363007962,1748548246321,-693.08,0.0002,2]
[363007963,1748548246330,-10246.64,0.0002,2]
[363007964,1748548246340,-430.0,0.0002,2]
[363007965,1748548246349,-2484.53,0.0002,2]
[363007966,1748548246358,-1397.03,0.0002,2]
[363007967,1748548246368,-430.0,0.0002,2]
[363007968,1748548246378,-5340.17,0.0002,2]
[363007969,1748548246393,-501.75737556,0.0002,2]
[363007970,1748548246413,-430.0,0.0002,2]
[363007971,1748548246429,-615.66,0.0002,2]
[363007972,1748548246447,-430.0,0.0002,2]
[363007973,1748548246464,-430.0,0.0002,2]
[363007974,1748548246483,-500.53,0.0002,2]
[363007975,1748548246500,-430.0,0.0002,2]
[363007976,1748548246514,-430.0,0.0002,2]
[363007977,1748548246532,-1610.98,0.0002,2]
[363007978,1748548246547,-3879.95,0.0002,2]
[363007979,1748548246560,-430.0,0.0002,2]
[363007980,1748548246578,-370.67598761,0.0002,2]
[363007981,1748548246595,-1953.25,0.0002,2]
[363007982,1748548246613,-621.94,0.0002,2]
[363007983,1748548246626,-430.0,0.0002,2]
[363007984,1748548246640,-5619.57,0.0002,2]
[363007985,1748548246657,-415.52709716,0.0002,2]
[363007986,1748548246670,-4363.23,0.0002,2]
[363007987,1748548246686,-300.0,0.0002,2]
[363007988,1748548246699,-2865.39,0.0002,2]
[363007989,1748548246713,-430.0,0.0002,2]
[363007991,1748548246726,-430.0,0.0002,2]
[363007994,1748548246741,-4959.27,0.0002,2]
[363007996,1748548246755,-273.91374003,0.0002,2]
[363007998,1748548246769,-9356.79,0.0002,2]
[363008001,1748548246783,-2403.0,0.0002,2]
[363008004,1748548246799,-3309.55,0.0002,2]
[363008006,1748548246812,-450.0,0.0002,2]
[363008008,1748548246825,-794.29,0.0002,2]
[363008011,1748548246838,-3119.99,0.0002,2]
[363008013,1748548246851,-430.0,0.0002,2]
[363008016,1748548246865,-460.0,0.0002,2]
[363008018,1748548246878,-430.0,0.0002,2]
[363008020,1748548246892,-404.96000628,0.0002,2]
[363008023,1748548246906,-919.62,0.0002,2]
[363008025,1748548246920,-812.04,0.0002,2]
[363008027,1748548246934,-3128.26,0.0002,2]
[363008029,1748548246948,-430.0,0.0002,2]
[363008032,1748548246962,-490.13800753,0.0002,2]
[363008034,1748548246975,-430.0,0.0002,2]